bitfinex-derivatives/quotes_ETHF0:USTF0_20251210
["timestamp","ask_amount","ask_price","bid_price","bid_amount"]
[1765329629402,3.9254,3311.4,3311.3,1.3986]
[1765329629609,0.7176,3311.1,3311.0,1.80729767]
[1765329629799,1.4235,3311.1,3311.0,1.80729767]
[1765329630107,1.4235,3311.1,3311.0,0.00309767]
[1765329631500,1.4235,3311.1,3310.7,0.00453042]
[1765329631501,1.4235,3310.8,3310.7,0.00453042]
[1765329631703,4.6313,3310.8,3310.7,0.00453042]
[1765329632600,4.63481105,3310.8,3310.7,0.00730622]
[1765329636300,1.4235,3310.1,3310.0,3.2078]
[1765329636508,1.4235,3309.6,3309.5,5.0424]
[1765329637008,0.7176,3309.6,3309.5,5.0424]
[1765329637396,0.7176,3309.6,3309.5,5.04598676]
[1765329638104,0.88533483,3310.3,3309.5,5.04598676]
[1765329638105,0.63943428,3310.2,3309.5,5.04598676]
[1765329638302,0.88533369,3310.3,3309.5,5.04598676]
[1765329639412,0.63943428,3310.3,3309.5,5.04598676]
[1765329640111,1.4235,3310.3,3310.2,0.7033]
[1765329640406,3.9254,3310.4,3310.3,1.3986]
[1765329641311,0.7176,3310.4,3310.3,1.3986]
[1765329642710,4.63481105,3310.8,3310.7,1.3986]
[1765329643014,5.52025162,3310.8,3310.7,1.3986]
[1765329643399,5.52025162,3310.8,3310.5,0.4056]
[1765329643400,1.4235,3310.6,3310.0,0.4056]
[1765329643913,1.4235,3310.1,3310.0,1.8042]
[1765329644212,3.21131105,3310.8,3310.0,1.8042]
[1765329644413,0.88524126,3310.7,3310.0,1.8042]
[1765329644708,0.6393377,3310.7,3310.0,1.8042]
[1765329644911,0.7176,3310.7,3310.6,1.3986]
[1765329645713,3.92891105,3310.8,3310.7,1.3986]
[1765329645914,3.21131105,3310.8,3310.7,1.3986]
[1765329646609,0.7176,3310.6,3310.5,1.8042]
[1765329648614,3.92891105,3310.8,3310.7,1.3986]
[1765329649213,4.63481105,3310.8,3310.7,1.3986]
[1765329649616,4.63481105,3310.8,3310.7,0.7033]
[1765329649811,1.4235,3310.6,3310.5,1.8042]
[1765329650014,1.4235,3310.1,3310.0,3.42846176]
[1765329650212,0.7176,3310.1,3310.0,1.8042]
[1765329650412,3.21131105,3310.8,3310.0,1.8042]
[1765329650613,3.21131105,3310.8,3310.3,3.2078]
[1765329650919,0.7176,3310.4,3310.3,4.6064]
[1765329651609,1.4235,3310.4,3310.3,4.6064]
[1765329652915,3.21131105,3310.8,3310.3,4.6064]
[1765329653114,0.15552042,3311.1,3311.0,1.8682]
[1765329653115,0.00453042,3311.1,3311.0,1.8682]
[1765329654224,0.00843522,3311.1,3311.0,1.8682]
[1765329654422,1.44713522,3311.1,3311.0,0.4392]
[1765329654718,0.70953522,3311.1,3311.0,1.8763]
[1765329655621,0.00843522,3311.1,3311.0,1.8763]
[1765329656023,0.70953522,3311.1,3311.0,1.8763]
[1765329656225,0.00843522,3311.1,3311.0,1.8763]
[1765329656726,0.70953522,3311.1,3311.0,1.8763]
[1765329657331,1.44713522,3311.1,3311.0,1.8763]
[1765329659424,1.4387,3310.8,3310.7,4.6449]
[1765329659619,1.4387,3310.8,3310.7,3.2078]
[1765329660714,1.4387,3310.8,3310.7,4.6449]
[1765329660918,1.44713522,3311.1,3311.0,0.7174]
[1765329661215,1.69308139,3311.1,3311.0,1.8728]
[1765329661528,1.4387,3310.8,3310.7,3.2078]
[1765329662222,1.4387,3310.8,3310.7,3.9252]
[1765329662928,0.7011,3310.8,3310.7,4.6449]
[1765329663329,2.33412496,3311.1,3311.0,0.7174]
[1765329663524,1.4387,3310.8,3310.5,0.4357]
[1765329663730,1.4387,3310.8,3309.7,8.865]
[1765329663731,1.4387,3309.6,3309.5,0.00358676]
[1765329663924,4.89224135,3309.6,3309.5,0.00358676]
[1765329664228,5.53318915,3309.6,3309.5,0.00358676]
[1765329664428,5.53318915,3309.6,3309.5,1.87638676]
[1765329664633,5.53318915,3309.6,3309.5,0.00358676]
[1765329665532,5.2874478,3309.6,3309.5,0.00358676]
[1765329666735,5.2874478,3309.6,3309.5,0.72098676]
[1765329666928,4.6465,3309.6,3309.5,1.87638676]
[1765329667130,4.6465,3309.6,3309.5,0.43928676]
[1765329668232,4.6465,3309.6,3309.5,1.15668676]
[1765329669238,3.2078,3309.6,3309.5,1.87638676]
[1765329671535,3.9258,3309.6,3309.5,1.87638676]
[1765329673438,3.2078,3309.6,3309.5,1.87638676]
[1765329676836,3.9258,3309.6,3309.5,1.87638676]
[1765329677035,4.6516,3309.6,3309.5,1.15668676]
[1765329677237,4.6516,3309.6,3309.5,0.00358676]
[1765329678837,3.9258,3309.6,3309.5,1.82228676]
[1765329679430,4.6516,3309.6,3309.5,0.44888676]
[1765329679640,4.6516,3309.6,3309.5,0.00358676]
[1765329682337,4.6516,3309.6,3309.5,0.69218676]
[1765329682843,3.2078,3309.6,3309.5,1.82228676]
[1765329683038,4.6551,3310.0,3309.9,0.6886]
[1765329684239,4.6551,3310.0,3309.5,0.44888676]
[1765329684836,0.7026,3309.6,3309.5,1.18988676]
[1765329685041,1.4319,3309.6,3309.5,0.00358676]
[1765329687645,4.6397,3309.6,3309.5,0.00358676]
[1765329687844,5.27897488,3309.6,3309.5,0.74458676]
[1765329688043,5.27897488,3309.6,3309.5,0.00358676]
[1765329688352,3.2078,3309.6,3309.5,1.84898676]
[1765329689140,3.9104,3310.0,3309.9,1.4172]
[1765329689349,4.7961918,3310.0,3309.9,1.4172]
[1765329689651,5.5254918,3310.0,3309.9,1.4172]
[1765329689945,5.5254918,3310.0,3309.9,0.741]
[1765329690141,1.4319,3309.6,3309.5,1.17278676]
[1765329690345,1.4319,3309.6,3309.5,0.43178676]
[1765329690546,1.4319,3309.6,3309.5,1.17278676]
[1765329690744,1.4319,3309.6,3309.5,1.84898676]
[1765329691043,0.7026,3309.6,3309.5,1.84898676]
[1765329693754,2.32044006,3309.9,3309.8,1.4172]
[1765329694358,0.7026,3309.6,3309.5,1.84898676]
[1765329694545,1.4319,3309.6,3309.5,1.17278676]
[1765329694749,2.07433908,3309.6,3309.5,1.17278676]
[1765329695145,2.07433908,3309.6,3309.5,1.84898676]
[1765329695350,2.07433908,3309.6,3309.5,0.00358676]
[1765329695558,2.07433908,3309.6,3309.5,0.74458676]
[1765329695856,1.4319,3309.6,3309.5,1.84898676]
[1765329696055,1.4319,3309.6,3309.5,0.43178676]
[1765329696245,2.0743212,3309.6,3309.5,0.00358676]
[1765329696450,2.32043849,3309.6,3309.5,0.00358676]
[1765329698457,2.32058143,3309.6,3309.5,0.00358676]
[1765329700658,5.52838143,3309.6,3309.5,0.00358676]
[1765329701647,5.52838143,3309.6,3309.5,1.84898676]
[1765329703053,5.52838143,3309.6,3309.5,0.00358676]
[1765329705161,5.52843117,3309.6,3309.5,0.00358676]
[1765329705658,5.52843117,3309.6,3308.7,1.62426176]
[1765329705659,1.4319,3308.8,3308.7,1.62426176]
[1765329705861,1.4319,3308.6,3308.5,1.62426176]
[1765329706062,1.4319,3308.6,3308.5,2.36526176]
[1765329706259,1.4319,3308.6,3308.5,3.46966176]
[1765329706656,1.43481633,3308.6,3308.5,0.00391378]
[1765329706962,2.07716026,3308.6,3308.5,0.00391378]
[1765329707368,2.07681313,3308.6,3308.5,0.00391378]
[1765329707861,2.3225972,3308.6,3308.5,0.00391378]
[1765329708263,2.07681313,3308.6,3308.5,0.74491378]
[1765329708463,2.07681313,3308.6,3308.5,1.42111378]
[1765329708668,2.07681313,3308.6,3308.5,0.74491378]
[1765329708964,2.07681313,3308.6,3308.5,0.00391378]
[1765329710358,1.43481633,3308.6,3308.5,0.00391378]
[1765329711358,1.43481633,3308.6,3308.5,0.74491378]
[1765329712453,1.43481633,3308.6,3308.5,0.00391378]
[1765329714061,2.32097723,3308.6,3308.5,0.00391378]
[1765329714562,2.32073031,3308.6,3308.5,0.00391378]
[1765329714965,1.4194,3307.9,3307.8,3.2078]
[1765329715157,1.4194,3307.9,3307.8,4.6107]
[1765329715556,1.4194,3307.9,3307.8,3.879]
[1765329715853,1.4194,3307.9,3307.1,1.62426176]
[1765329715854,1.4194,3307.4,3307.3,4.6107]
[1765329716055,1.4194,3307.4,3307.3,3.8827484]
[1765329716456,1.4194,3307.4,3307.3,0.0037484]
[1765329716762,1.4194,3307.4,3307.3,0.6749484]
[1765329717067,1.4194,3307.4,3307.3,0.0037484]
[1765329721766,1.4194,3306.6,3306.5,3.2078]
[1765329721964,1.4194,3306.6,3306.0,0.4256]
[1765329722374,1.4194,3306.6,3306.5,1.8285]
[1765329722768,1.4194,3306.6,3306.5,1.83098826]
[1765329722967,1.4194,3306.6,3306.5,1.09928826]
[1765329723672,1.4194,3306.6,3306.5,0.00248826]
[1765329724075,1.42393042,3306.9,3306.8,1.4029]
[1765329724570,1.42393042,3306.9,3306.8,0.6712]
[1765329724972,1.4194,3306.6,3306.5,1.83098826]
[1765329725373,1.4194,3306.6,3306.5,1.09928826]
[1765329725772,1.4194,3306.6,3306.5,1.83098826]
[1765329726575,0.7348,3306.6,3306.5,1.83098826]
[1765329726873,1.42393042,3306.9,3306.8,1.4029]
[1765329727179,0.00453042,3306.9,3306.8,1.4029]
[1765329727576,0.73933042,3306.9,3306.8,1.4029]
[1765329728276,0.00453042,3306.9,3306.8,1.4029]
[1765329728572,0.73933042,3306.9,3306.8,1.4029]
[1765329729573,0.00453042,3306.9,3306.8,1.4029]
[1765329730782,1.42393042,3306.9,3306.8,0.6712]
[1765329730966,1.4443,3306.6,3306.5,1.87278826]
[1765329731370,0.00453042,3306.9,3306.8,1.4447]
[1765329731771,0.72333042,3306.9,3306.8,1.4447]
[1765329731977,1.44883042,3306.9,3306.8,1.4447]
[1765329732179,0.00453042,3306.9,3306.8,1.4447]
[1765329732981,1.44883042,3306.9,3306.8,1.4447]
[1765329733279,0.7188,3306.6,3306.5,1.87278826]
[1765329734384,1.44883042,3306.9,3306.8,1.4447]
[1765329734683,1.4443,3306.6,3306.5,1.16418826]
[1765329734885,1.4443,3306.6,3306.5,1.87278826]
[1765329735080,1.44883042,3306.9,3306.8,1.4447]
[1765329735684,0.72333042,3306.9,3306.8,1.4447]
[1765329737481,0.00453042,3306.9,3306.8,1.4447]
[1765329737985,0.72333042,3306.9,3306.8,1.4447]
[1765329738388,0.00453042,3306.9,3306.8,1.4447]
[1765329738577,1.44883042,3306.9,3306.8,1.4447]
[1765329738782,1.44883042,3306.9,3306.8,0.7361]
[1765329739087,0.72333042,3306.9,3306.8,1.4447]
[1765329739288,0.00453042,3306.9,3306.8,1.4447]
[1765329740289,0.72333042,3306.9,3306.8,1.4447]
[1765329740791,0.00453042,3306.9,3306.8,1.4447]
[1765329741389,0.72333042,3306.9,3306.8,1.4447]
[1765329741693,0.00453042,3306.9,3306.8,1.4447]
[1765329746587,0.64182342,3307.3,3307.2,1.3962]
[1765329747893,1.35742342,3307.3,3307.2,1.3962]
[1765329748289,1.4473,3307.1,3307.0,1.131]
[1765329748495,2.09052594,3307.1,3307.0,1.131]
[1765329748693,1.4473,3306.8,3306.7,3.2078]
[1765329748888,2.75165497,3306.8,3306.7,3.2078]
[1765329749084,3.39488091,3306.8,3306.7,3.2078]
[1765329749595,2.09052594,3306.8,3306.7,3.2078]
[1765329749901,2.09052594,3306.8,3306.7,4.604]
[1765329750091,0.7156,3306.8,3306.7,4.604]
[1765329750492,0.88803149,3307.1,3307.0,0.7013]
[1765329750694,3.9234,3307.4,3307.3,1.3962]
[1765329750997,4.81083322,3307.4,3307.3,1.3962]
[1765329751296,5.54253322,3307.4,3307.3,1.3962]
[1765329751492,1.4473,3307.1,3307.0,0.4297]
[1765329751893,0.7156,3306.8,3306.7,4.604]
[1765329752489,1.4473,3306.8,3306.7,4.604]
[1765329752693,1.4473,3306.8,3306.7,3.9091]
[1765329753186,1.4473,3306.8,3306.7,4.604]
[1765329753385,3.2078,3307.4,3306.7,4.604]
[1765329753590,2.33460089,3307.3,3307.2,1.3962]
[1765329753794,0.7156,3306.8,3306.7,4.604]
[1765329753991,1.4473,3306.8,3306.7,3.2078]
[1765329754196,1.4473,3306.6,3306.5,0.00248826]
[1765329754395,2.08955271,3306.6,3306.5,0.70378826]
[1765329756297,2.08955271,3306.6,3306.5,1.82838826]
[1765329757593,0.64225271,3306.6,3306.5,1.82838826]
[1765329757800,1.60289536,3306.9,3306.8,1.3962]
[1765329757995,2.08955271,3306.9,3306.8,1.3962]
[1765329758995,2.08955271,3306.9,3306.5,0.43218826]
[1765329758996,1.4473,3306.6,3306.5,1.13348826]
[1765329759200,1.4473,3306.6,3306.5,0.00248826]
[1765329759399,1.4473,3306.6,3306.5,0.70378826]
[1765329759600,1.4473,3306.6,3306.5,1.82838826]
[1765329762297,3.2078,3307.0,3306.5,1.82838826]
[1765329762503,4.6551,3307.0,3306.9,1.3962]
[1765329762694,5.54243531,3307.0,3306.9,0.7013]
[1765329763095,5.54243531,3307.0,3306.5,0.43218826]
[1765329763310,2.08952992,3306.9,3306.8,0.7013]
[1765329765606,1.4473,3306.6,3306.5,1.82838826]
[1765329765999,0.7156,3306.6,3306.5,1.82838826]
[1765329766604,1.4473,3306.6,3306.5,1.82838826]
[1765329766800,0.7156,3306.6,3306.5,1.82838826]
[1765329767697,1.4473,3306.6,3306.5,1.82838826]
[1765329768404,1.4473,3306.6,3306.5,1.13348826]
[1765329768998,1.4473,3306.6,3306.5,0.00248826]
[1765329769305,1.4473,3306.3,3306.2,0.0030203]
[1765329769498,1.69223058,3306.3,3306.2,0.0030203]
[1765329769701,2.33435572,3306.3,3306.2,0.0030203]
[1765329770394,2.33435572,3306.3,3306.2,0.00564282]
[1765329770804,3.63964181,3306.3,3306.2,0.00564282]
[1765329771206,3.39471123,3306.3,3306.2,0.00564282]
[1765329771701,2.08942514,3306.3,3306.2,0.00564282]
[1765329773802,4.6651,3306.6,3306.5,1.8566]
[1765329773999,0.735,3306.3,3306.2,1.44904282]
[1765329774205,1.4573,3306.3,3306.2,1.44904282]
[1765329774806,4.6651,3306.6,3306.5,1.8566]
[1765329775002,5.55139216,3306.6,3306.5,1.1386]
[1765329775205,5.55139216,3306.6,3306.5,0.7254]
[1765329775404,0.735,3306.3,3306.2,1.44904282]
[1765329775599,0.88629216,3306.5,3306.2,1.44904282]
[1765329775804,4.6651,3307.1,3306.5,0.4132]
[1765329776106,0.735,3306.6,3306.5,1.8566]
[1765329778201,3.2078,3307.1,3306.5,1.8566]
[1765329778501,2.34420346,3307.0,3306.9,0.7254]
[1765329778701,0.735,3306.6,3306.5,1.1386]
[1765329779006,0.735,3306.6,3306.5,1.8566]
[1765329782706,1.62327907,3306.9,3306.8,0.7254]
[1765329782908,2.34557907,3306.9,3306.8,1.4434]
[1765329783309,0.6431088,3306.9,3306.8,1.4434]
[1765329783616,1.62331695,3307.0,3306.9,1.4434]
[1765329784413,2.34561695,3307.0,3306.9,1.4434]
[1765329785207,1.70250815,3307.0,3306.9,1.4434]
[1765329785513,2.34568196,3307.0,3306.9,1.4434]
[1765329787506,2.34568196,3307.0,3306.9,0.7254]
[1765329788004,1.62338196,3307.0,3306.9,1.4434]
[1765329788214,0.64317381,3307.0,3306.9,1.4434]
[1765329788408,4.6651,3307.1,3307.0,1.8566]
[1765329788599,5.30780613,3307.1,3307.0,1.8566]
[1765329788999,3.85050613,3307.1,3307.0,1.8566]
[1765329789201,3.2078,3307.1,3307.0,1.8566]
[1765329789403,3.9428,3307.1,3307.0,1.8566]
[1765329789808,3.2078,3307.1,3307.0,1.8566]
[1765329790609,3.9428,3307.1,3307.0,1.8566]
[1765329791513,3.2078,3307.1,3307.0,1.8566]
[1765329793710,4.6413,3307.1,3307.0,1.8566]
[1765329793909,1.4335,3306.7,3306.6,1.4334]
[1765329794411,3.2078,3307.1,3307.0,1.8741]
[1765329794915,4.6413,3307.5,3307.4,1.4334]
[1765329795111,5.528522,3307.5,3307.4,0.6964]
[1765329795316,5.28362537,3307.5,3307.4,0.6964]
[1765329795519,5.28362537,3307.5,3307.0,0.4407]
[1765329795718,2.07582537,3307.4,3307.3,0.6964]
[1765329796109,1.4335,3307.1,3307.0,1.8741]
[1765329796420,1.4335,3306.9,3306.8,4.6412]
[1765329796610,3.5644,3307.5,3306.8,4.6412]
[1765329796805,0.6421514,3307.4,3306.8,4.6412]
[1765329797011,1.4335,3307.4,3307.3,1.4334]
[1765329798013,1.4335,3307.4,3307.3,0.6964]
[1765329798214,1.4335,3307.4,3307.0,0.4407]
[1765329798215,4.6413,3307.5,3307.0,0.4407]
[1765329798418,1.4335,3307.1,3307.0,1.8741]
[1765329799316,0.7139,3307.1,3307.0,1.8741]
[1765329799507,1.4335,3307.1,3307.0,1.1371]
[1765329800019,1.4335,3307.1,3307.0,1.8741]
[1765329801009,1.4335,3307.1,3306.8,3.2078]
[1765329801010,1.4335,3306.9,3306.8,4.6412]
[1765329801212,1.4335,3306.9,3306.8,3.2078]
[1765329801815,1.4335,3306.9,3306.8,3.9042]
[1765329802412,1.4335,3306.5,3306.4,3.9042]
[1765329802616,1.4335,3306.5,3306.4,4.6412]
[1765329803414,1.4567,3306.3,3306.2,1.39954282]
[1765329803617,1.4567,3306.3,3306.2,0.69534282]
[1765329804222,1.4567,3306.3,3306.2,1.39954282]
[1765329805120,3.2078,3306.5,3306.4,1.3939]
[1765329805523,0.00453042,3307.6,3306.2,0.00564282]
[1765329805524,3.2078,3307.0,3306.9,1.3939]
[1765329805725,4.6645,3307.5,3307.0,0.4284]
[1765329806025,2.34470915,3307.4,3307.3,0.6897]
[1765329806325,0.7285,3307.1,3307.0,1.8223]
[1765329807322,1.61646289,3307.3,3307.2,1.3939]
[1765329807629,2.34466289,3307.3,3307.2,1.3939]
[1765329807822,2.0995154,3307.3,3307.2,1.3939]
[1765329808326,2.34476168,3307.3,3307.2,1.3939]
[1765329810324,2.0995154,3307.3,3307.2,1.3939]
[1765329810528,3.2078,3307.5,3307.4,1.3939]
[1765329810831,4.83227043,3307.5,3307.4,1.3939]
[1765329811125,4.10377043,3307.5,3307.4,1.3939]
[1765329811323,0.00453042,3307.6,3307.5,1.8223]
[1765329811629,0.89596913,3308.3,3308.2,1.3939]
[1765329811930,2.10741625,3308.5,3308.4,0.6897]
[1765329812124,1.4567,3308.1,3308.0,1.8223]
[1765329812921,0.7285,3308.1,3308.0,1.8223]
[1765329813126,1.4567,3308.1,3308.0,1.8223]
[1765329813927,0.73303042,3308.4,3308.3,0.6897]
[1765329814127,0.7285,3308.1,3308.0,1.8223]
[1765329815131,1.4567,3308.1,3308.0,1.1181]
[1765329815331,1.4567,3307.9,3307.8,3.2078]
[1765329815528,1.4567,3307.8,3307.7,0.00453042]
[1765329816821,2.10641112,3307.8,3307.7,0.00453042]
[1765329817025,2.35117979,3307.8,3307.7,0.00453042]
[1765329818135,0.15116,3307.3,3306.9,3.2078]
[1765329818433,0.3569,3307.5,3306.2,0.00262252]
[1765329818434,0.15119,3306.7,3306.2,0.00262252]
[1765329818630,0.1512,3306.6,3306.2,0.00262252]
[1765329819133,1.04567979,3306.6,3306.2,0.00262252]
[1765329819432,0.89447979,3306.5,3306.2,0.00262252]
[1765329819729,0.64971112,3306.4,3306.2,0.00262252]
[1765329820435,0.24476867,3306.5,3306.2,0.00262252]
[1765329820730,3.2078,3306.3,3306.2,0.00262252]
[1765329820930,4.10227979,3306.3,3306.2,0.00262252]
[1765329822231,3.85751112,3306.3,3305.5,0.4284]
[1765329822433,0.15124,3305.6,3304.0,0.4284]
[1765329823027,1.0448583,3305.6,3305.5,0.4284]
[1765329823222,0.39856077,3305.6,3305.5,0.4284]
[1765329823526,0.15465359,3305.6,3305.5,0.43156482]
[1765329823931,3.36245359,3305.6,3305.5,0.43156482]
[1765329824129,3.36245359,3305.6,3305.2,0.00304336]
[1765329824130,0.15125,3305.5,3305.2,0.00304336]
[1765329824330,0.80096112,3305.5,3305.2,0.00304336]
[1765329824632,0.24341434,3305.4,3304.3,3.2078]
[1765329824821,3.2078,3304.7,3304.3,3.2078]
[1765329825225,3.2078,3304.7,3304.5,1.12197639]
[1765329825432,3.2078,3304.7,3304.5,0.43227639]
[1765329826435,3.2078,3304.7,3304.6,0.6897]
[1765329826628,3.2078,3304.7,3304.5,0.43227639]
[1765329827037,3.2078,3304.7,3304.6,0.6897]
[1765329827237,3.2078,3304.7,3304.5,0.43227639]
[1765329828237,3.2078,3304.7,3304.6,0.6897]
[1765329828743,3.2078,3304.7,3304.6,1.3939]
[1765329831846,0.00453734,3304.9,3304.8,1.3939]
[1765329834040,0.00453734,3304.9,3304.8,4.6017]
[1765329834341,3.21121359,3305.6,3305.5,0.4379]
[1765329834733,3.21121359,3305.6,3305.0,0.4379]
[1765329834937,3.2078,3305.1,3305.0,0.4379]
[1765329835544,0.15578734,3305.4,3305.0,0.4379]
[1765329835750,3.2078,3305.1,3305.0,0.4379]
[1765329838551,3.2078,3305.1,3305.0,1.877]
[1765329840946,3.2078,3305.1,3305.0,0.4379]
[1765329843251,3.2078,3305.1,3305.0,1.1811]
[1765329843950,3.2078,3305.1,3305.0,0.4379]
[1765329844648,3.2078,3305.1,3305.0,1.877]
[1765329845237,3.85231282,3305.1,3305.0,1.877]
[1765329845438,3.85231282,3305.1,3305.0,1.1811]
[1765329845647,3.85231282,3305.1,3305.0,1.877]
[1765329845950,3.2078,3305.1,3305.0,1.877]
[1765329847549,0.00453734,3305.4,3305.3,1.4391]
[1765329848251,0.00453734,3305.4,3305.3,7.4391]
[1765329848452,0.00453734,3305.4,3305.3,1.4391]
[1765329849957,0.00453734,3305.4,3305.3,7.4391]
[1765329851248,3.2078,3306.0,3305.9,1.3943]
[1765329852055,3.8962,3306.8,3306.7,0.7154]
[1765329852255,4.54688827,3306.8,3306.7,1.3943]
[1765329852445,3.85848827,3306.8,3306.7,1.3943]
[1765329852649,4.54688827,3306.8,3306.7,1.3943]
[1765329852846,3.21121375,3306.8,3306.7,1.3943]
[1765329853457,0.00341375,3306.8,3306.7,4.6021]
[1765329858053,1.39821375,3306.8,3306.7,4.6021]
[1765329858560,1.39821375,3306.8,3306.7,3.2078]
[1765329858756,1.3948,3306.5,3306.4,0.68343734]
[1765329859060,1.3948,3306.5,3306.4,0.00453734]
[1765329859661,1.7401,3306.5,3306.4,0.00453734]
[1765329862764,1.3948,3306.5,3306.4,0.00453734]
[1765329863458,1.36151375,3306.8,3306.7,0.7441]
[1765329863657,1.36151375,3306.8,3306.7,1.4334]
[1765329863857,1.3581,3306.5,3306.4,0.00453734]
[1765329866364,1.7034,3306.5,3306.4,0.00453734]
[1765329868863,1.3581,3306.5,3306.4,0.00453734]
[1765329869062,1.3581,3306.6,3306.5,1.182]
[1765329869268,1.3581,3306.5,3306.4,0.00453734]
[1765329870366,1.3581,3306.5,3306.4,0.74863734]
[1765329870567,0.6803,3306.5,3306.4,1.43793734]
[1765329871264,1.3581,3306.5,3306.4,1.43793734]
[1765329871668,1.3581,3306.5,3306.4,0.74863734]
[1765329874071,1.3581,3306.5,3306.4,1.43793734]
[1765329874566,0.68371375,3306.8,3306.7,1.4334]
[1765329875166,2.00647055,3306.8,3306.7,0.7441]
[1765329875673,1.3581,3306.6,3306.5,1.182]
[1765329876072,1.3581,3306.5,3306.4,0.00453734]
[1765329877370,2.00407686,3306.5,3306.4,0.00453734]
[1765329879978,2.00407686,3306.5,3306.4,0.74863734]
[1765329880270,2.24929471,3306.5,3306.4,0.74863734]
[1765329880476,2.24929471,3306.5,3306.4,0.00453734]
[1765329880878,2.24929471,3306.5,3306.4,0.74863734]
[1765329881473,2.24929471,3306.5,3306.4,1.43793734]
[1765329882068,2.24929471,3306.5,3306.4,0.00453734]
[1765329882482,0.89119471,3306.5,3306.4,1.43793734]
[1765329882777,3.2078,3306.7,3306.5,1.8713]
[1765329882778,1.3581,3306.6,3306.5,1.8713]
[1765329882966,2.00447497,3306.6,3306.5,1.182]
[1765329884179,1.57201733,3306.6,3306.5,1.8713]
[1765329884773,2.24981733,3306.6,3306.5,1.8713]
[1765329886684,1.57201733,3306.6,3306.5,1.8713]
[1765329887776,0.89171733,3306.6,3306.5,1.8713]
[1765329888278,1.57201733,3306.6,3306.5,1.8713]
[1765329888979,2.24981733,3306.6,3306.5,1.8713]
[1765329890080,1.57201733,3306.6,3306.5,1.8713]
[1765329891486,2.24981733,3306.6,3306.5,1.8713]
[1765329891676,1.57201733,3306.6,3306.5,1.8713]
[1765329892284,0.89171733,3306.6,3306.5,1.8713]
[1765329892482,0.68371375,3306.8,3306.7,1.4334]
[1765329893284,1.57721222,3306.8,3306.7,1.4334]
[1765329893789,0.89691222,3306.8,3306.7,1.4334]
[1765329893989,2.33711222,3306.8,3306.7,1.4334]
[1765329894292,1.4402,3306.6,3306.5,1.8193]
[1765329894588,2.33369847,3306.6,3306.5,1.8193]
[1765329895180,1.36839869,3306.6,3306.5,1.8193]
[1765329895385,0.72411375,3306.8,3306.7,1.3814]
[1765329896087,1.61734119,3306.8,3306.7,1.3814]
[1765329896490,2.33684119,3306.8,3306.7,1.3814]
[1765329896695,0.7207,3306.6,3306.5,1.8193]
[1765329897086,1.36820408,3306.6,3306.5,1.8193]
[1765329897287,0.7207,3306.6,3306.5,1.8193]
[1765329898084,0.96634112,3306.6,3306.5,1.8193]
[1765329898289,1.6138452,3306.6,3306.5,1.8193]
[1765329898694,0.64750408,3306.6,3306.5,1.8193]
[1765329898900,1.4402,3306.6,3306.5,1.8193]
[1765329899097,0.96634108,3306.6,3306.5,1.8193]
[1765329899290,1.36820408,3306.6,3306.5,1.8193]
[1765329899599,2.33334516,3306.6,3306.5,1.8193]
[1765329900695,1.61384516,3306.6,3306.5,1.8193]
[1765329900896,1.4402,3306.5,3306.4,0.70883734]
[1765329901190,9.74109773,3306.5,3306.4,0.00453734]
[1765329901394,0.3453,3306.0,3305.8,3.2078]
[1765329901589,0.3439,3305.5,3305.4,3.2078]
[1765329901793,1.7841,3305.5,3305.4,3.2078]
[1765329902094,2.67729996,3305.5,3305.4,3.2078]
[1765329902288,0.7207,3305.1,3305.0,1.8067]
[1765329902597,1.4402,3305.1,3305.0,1.8067]
[1765329903102,0.7207,3305.1,3305.0,1.8067]
[1765329903592,1.4402,3305.0,3304.9,3.21233734]
[1765329903895,5.63952241,3305.0,3304.9,0.00453734]
[1765329904096,5.88463221,3305.0,3304.9,0.00453734]
[1765329904293,5.63952241,3305.0,3304.9,0.00453734]
[1765329904691,1.4402,3304.6,3304.5,0.00387639]
[1765329904889,1.4402,3304.6,3303.5,0.4253]
[1765329904890,1.4402,3303.7,3303.6,4.5892]
[1765329905784,0.7195,3303.2,3303.1,3.9121]
[1765329905984,1.44356634,3303.2,3303.1,0.0025875]
[1765329906194,0.15136,3303.1,3302.0,0.4253]
[1765329906393,3.2078,3302.2,3302.0,0.4253]
[1765329907092,9.2078,3302.2,3302.0,0.42879717]
[1765329907293,3.2078,3302.2,3302.0,0.42879717]
[1765329908395,3.2078,3302.2,3302.1,1.3814]
[1765329908788,3.2078,3302.2,3302.0,0.42879717]
[1765329909595,3.2078,3302.2,3302.0,1.13309717]
[1765329910192,3.2078,3302.2,3302.0,0.42879717]
[1765329911301,3.2078,3302.2,3302.0,1.13309717]
[1765329911493,3.2078,3302.2,3302.0,0.42879717]
[1765329912000,3.2078,3302.2,3302.1,1.3814]
[1765329912593,3.2078,3302.6,3302.5,0.4253]
[1765329915294,3.2078,3302.6,3302.0,0.42879717]
[1765329915601,3.2078,3302.1,3302.0,1.88509717]
[1765329917402,3.2078,3302.1,3302.0,1.15269717]
[1765329917606,3.2078,3302.1,3302.0,0.42879717]
[1765329917903,3.2078,3302.1,3302.0,1.88509717]
[1765329919298,3.2078,3302.5,3302.0,1.15269717]
[1765329919500,3.2078,3302.3,3302.0,1.15269717]
[1765329919702,3.2078,3302.6,3302.5,1.1444]
[1765329919900,3.2078,3302.6,3302.5,0.4205]
[1765329921802,3.2078,3302.6,3302.5,1.8768]
[1765329922008,3.2078,3302.6,3302.5,0.4205]
[1765329923403,3.2078,3302.6,3302.5,1.1444]
[1765329923603,3.2078,3302.6,3302.5,0.4205]
[1765329924105,3.2078,3302.6,3302.5,1.1121]
[1765329924308,3.2078,3302.6,3302.5,1.8087]
[1765329927113,3.2078,3303.0,3302.5,1.8087]
[1765329931321,0.64933216,3302.9,3302.5,1.8087]
[1765329932518,0.64933216,3302.9,3302.8,0.6916]
[1765329934319,0.89393308,3302.9,3302.8,0.6916]
[1765329935024,0.89393308,3302.9,3302.5,1.1121]
[1765329935225,2.51403971,3302.9,3302.5,1.1121]
[1765329935425,0.24460092,3302.8,3302.5,1.1121]
[1765329935827,0.24460092,3302.8,3302.7,1.3882]